[Event "31st Kavala Open-A 2022"]
[Site "Kavala"]
[Date "2022.07.26"]
[Round "1.12"]
[White "Tsarsitalidis, Konstantinos"]
[Black "Pijpers, Arthur"]
[Result "1/2-1/2"]
[ECO "B70"]
[WhiteElo "2059"]
[BlackElo "2458"]
[Annotator "TA"]
[PlyCount "102"]
[EventDate "2022.07.27"]
[EventType "swiss"]
[EventCountry "GRE"]
[SourceTitle "playchess.com"]
[Source "ChessBase"]
[SourceQuality "1"]
[TimeControl "40/5400+30:1800+30"]

{[%evp 17,102,3,13,16,12,15,18,0,18,12,21,20,30,7,0,0,0,0,10,0,46,66,27,22,71,84,185,72,163,173,168,164,169,86,429,421,416,406,552,529,12838,400,629,386,344,188,220,32,56,41,58,0,0,0,0,0,149,107,295,112,113,113,117,117,311,0,0,0,0,0,0,0,0,0,0,0,0,0,0,0,0,0,0,0,0,0,0]} 1. e4 {[%emt 0:00:02]} c5 {[%emt 0:00:04]} 2. Nf3 {[%emt 0:00:04]} d6 {[%emt 0:00:03]} 3. d4 {[%emt 0:00:05]} cxd4 {[%emt 0:00:03]} 4. Nxd4 {[%emt 0:00:05]} Nf6 {[%emt 0:00:05]} 5. Nc3 {[%emt 0:00:05]} g6 {[%emt 0:00:04]} 6. Bc4 {[%emt 0:00:04]} Bg7 {[%emt 0:00:14]} 7. O-O {[%emt 0:00:07]} O-O {[%emt 0:00:32]} 8. Re1 $1 {[%emt 0:00:03] 8.Re1 is better than 8.Bb3.} Nc6 {[%emt 0:00:57][%cal Bb8c6,Bc6a5,Ba5c4][%mdl 32]} 9. h3 {[%emt 0:00:08]} Bd7 {[%emt 0:04:48]} 10. Nf3 {[%emt 0:00:06] B70: Sicilian Dragon: 6 g3 and 6 Be2 (without a later Be3).} Na5 {[%emt 0:07:58]} 11. Bf1 {[%emt 0:01:25]} Rc8 {[%emt 0:02:04]} 12. Nd5 {[%emt 0:10:45]} Re8 {[%emt 0:09:15]} 13. c3 {[%emt 0:06:48]} Nxd5 {[%emt 0:08:34]} 14. exd5 {[%emt 0:00:23]} Nc4 {[%emt 0:00:06]} 15. Re4 {[%emt 0:17:50]} (15. Bxc4 $5 Rxc4 16. Bg5 $11) 15... b5 {[%emt 0:08:47]} 16. a4 {[%emt 0:07:39]} a6 {[%emt 0:00:37]} 17. axb5 {[%emt 0:00:07]} axb5 {[%emt 0:00:44]} 18. Bxc4 {[%emt 0:10:14] [#]} Rxc4 $146 {[%emt 0:02:55]} (18... bxc4 $11 19. Qe2 Rc5) ({Predecessor:} 18... bxc4 19. Qe2 Rc5 20. Bg5 Rxd5 21. Bxe7 Qb8 22. Qxc4 Be6 23. Qc6 Rc8 24. Qa6 Qc7 {1-0 (59) Dijkhuis,T (2401)-Stewart,A (2176) Paleochora 2018}) 19. Rxc4 $14 {[%emt 0:02:36]} bxc4 {[%emt 0:00:01]} 20. Ra7 {[%emt 0:02:45]} Bf5 {[%emt 0:21:27]} (20... Qc8 $11 {is more appropriate.}) 21. Nd4 $1 $16 {[%emt 0:03:57]} e6 {[%emt 0:06:33]} (21... Bd7 $16) 22. Be3 {[%emt 0:07:32]} (22. dxe6 $18 {is the precise move to win.} Bxe6 23. Nxe6 fxe6 24. Qf3) 22... Be4 {[%emt 0:07:56]} (22... Qb8 $16 {keeps fighting.}) 23. dxe6 $18 {[%emt 0:00:17]} fxe6 {[%emt 0:00:01]} 24. Qa4 {[%emt 0:02:35]} Bd5 {[%emt 0:02:02]} 25. Rd7 {[%emt 0:06:03]} (25. Bg5 $18 Qc8 26. Nb5) 25... Qa8 {[%emt 0:03:56][%mdl 8192] [#]} (25... Qc8 $16) 26. Rxg7+ $1 {[%emt 0:03:17][%mdl 512]} Kxg7 {[%emt 0:00:02][%cal Bg8g7,Bg7f6,Bf6e5,Be5e4,Be4d3,Bd3e2][%mdl 32]} 27. Qd7+ {[%emt 0:00:08]} Kf6 {[%emt 0:00:02]} 28. h4 {[%emt 0:01:00] Intending f3 and mate.} Bxg2 {[%emt 0:03:26]} 29. Bg5+ {[%emt 0:01:31]} (29. Bh6 $142 Re7 30. Bg5+ Ke5 31. Qxe7) 29... Ke5 {[%emt 0:00:01]} 30. Qg7+ {[%emt 0:00:27]} Ke4 {[%emt 0:00:01]} 31. Kxg2 {[%emt 0:01:34]} (31. Nc2 $142 {White wants to mate with Qd4+.} e5 32. Qf7 (32. Qxh7 Bh3 $16)) 31... Kd3+ {[%emt 0:00:02]} 32. Nf3 $2 {[%emt 0:05:56]} (32. f3 $18 Rb8 33. Nxe6) 32... Qe4 {[%emt 0:05:13]} 33. Kg3 {[%emt 0:04:11] Prevents Qg4+.} h5 {[%emt 0:00:02]} 34. Qd7 {[%emt 0:03:54]} (34. Nd2 $1 $14 Qe5+ 35. Qxe5 dxe5 36. Nf3) 34... Qg4+ $11 {[%emt 0:05:26]} 35. Kh2 {[%emt 0:00:00] Hoping for Ne5+. Dancing on a razor blade.} Ke2 {[%emt 0:00:05][%cal Og4f3]} 36. Ne5 {[%emt 0:03:51]} (36. Qxe8 $2 {is the wrong capture.} Kxf2 37. Be3+ Kxf3 38. Qf8+ Kxe3 $19) (36. Nd4+ Kf1 37. Qb7 d5) 36... Qe4 {[%emt 0:02:54]} 37. Qxd6 $16 {[%emt 0:00:25] Threatens to win with Kg3.} (37. Qxe8 {is a self mate.} Kf1 38. Kg3 Qg2+ 39. Kf4 Qh2+ 40. Ke4 Qxe5+ 41. Kf3 Qe2+ 42. Kg3 Qxf2+ 43. Kh3 Qg2#) 37... Qd5 $2 {[%emt 0:01:08]} (37... Kf1 $16 38. Qd1+ Kxf2 39. Qd2+ Kf1) 38. Qxd5 $2 {[%emt 0:00:52]} (38. Qc7 $18 {and the rest is easy.}) 38... exd5 {[%emt 0:00:02]} 39. f4 {[%emt 0:00:26]} ({Reject} 39. Nxg6 $6 Kxf2 40. Nf4 Kf3 $11) 39... Re6 {[%emt 0:00:56]} 40. Kg3 {[%emt 0:00:49]} Rb6 $2 {[%emt 0:00:55] [#]} (40... Re8 $16 {might work better.}) 41. Nf3 $2 {[%emt 0:07:56]} (41. Nxg6 $1 $18 {[%mdl 512] And now f5 would win.} Rxg6 (41... d4 42. f5) 42. f5) 41... Rxb2 $11 {[%emt 0:10:37] The position is equal.} 42. Bf6 {[%emt 0:02:50]} Ke3 {[%emt 0:00:38]} 43. f5 {[%emt 0:15:36]} gxf5 {[%emt 0:01:25] ( -> ...f4+)} 44. Bd4+ {[%emt 0:00:34]} Ke4 {[%emt 0:02:18]} 45. Ng5+ {[%emt 0:00:35]} Kd3 {[%emt 0:00:34]} 46. Ne6 {[%emt 0:00:44] Strongly threatening Kf3.} Rd2 $1 {[%emt 0:08:28]} 47. Kf3 {[%emt 0:01:54]} Kc2 {[%emt 0:02:18]} 48. Nf4 {[%emt 0:01:25]} Rd3+ $1 {[%emt 0:01:27]} 49. Ke2 {[%emt 0:01:38]} Rd2+ {[%emt 0:02:10]} 50. Kf3 {[%emt 0:00:31]} Rd3+ $1 {[%emt 0:01:03]} 51. Ke2 {[%emt 0:00:34]} Rd2+ {[%emt 0:00:36] Weighted Error Value: White=0.54/Black=0.52} 1/2-1/2

[Event "31st Kavala Open-A 2022"]
[Site "Kavala"]
[Date "2022.07.26"]
[Round "1.13"]
[White "Can, Isik"]
[Black "Banov, Boil"]
[Result "1-0"]
[ECO "B07"]
[WhiteElo "2445"]
[BlackElo "2043"]
[Annotator "TA"]
[PlyCount "79"]
[EventDate "2022.07.27"]
[EventType "swiss"]
[EventCountry "GRE"]
[SourceTitle "playchess.com"]
[Source "ChessBase"]
[SourceQuality "1"]
[TimeControl "40/5400+30:1800+30"]

{[%evp 14,79,38,34,122,122,146,130,152,175,172,169,179,158,251,256,260,258,262,263,263,277,260,274,288,277,301,287,300,294,303,296,293,288,369,360,393,380,407,400,398,393,435,435,436,387,391,367,376,351,384,381,487,481,527,483,488,549,528,472,609,594,594,594,587,576,558,544]} 1. e4 {[%emt 0:00:30]} g6 {[%emt 0:00:30]} 2. d4 {[%emt 0:00:30]} Bg7 {[%emt 0:00:30]} 3. Nc3 {[%emt 0:00:30]} d6 {[%emt 0:00:30]} 4. Be3 {[%emt 0:00:30]} Nf6 {[%emt 0:00:30]} 5. Qd2 {[%emt 0:00:30]} c6 {[%emt 0:00:30]} 6. Bh6 {[%emt 0:00:30]} Bxh6 {[%emt 0:00:30]} 7. Qxh6 {[%emt 0:00:30]} Qa5 {[%emt 0:00:30]} 8. Bd3 {[%emt 0:00:30]} b5 {[%emt 0:00:30] B07: Pirc Defence: Miscellaneous Systems.} ({Black should try} 8... c5 $14 9. Nf3 Bg4 10. dxc5 Qxc5) 9. Nf3 $16 {[%emt 0:00:30] Black must now prevent 0-0.} b4 {[%emt 0:00:30] [#]} 10. Ne2 {[%emt 0:00:30]} Nbd7 {[%emt 0:00:30] Against e5. White is better.} 11. O-O {[%emt 0:00:30]} Ba6 {[%emt 0:00:30]} 12. Bxa6 {[%emt 0:00:30]} Qxa6 {[%emt 0:00:30] [#]} 13. Ng3 {[%emt 0:00:30]} O-O-O {[%emt 0:00:30]} (13... Qb5 $16 14. b3 Qa5) 14. a3 $18 {[%emt 0:00:30]} b3 {[%emt 0:00:30]} 15. cxb3 {[%emt 0:00:30]} Kb8 {[%emt 0:00:30] [#]} 16. Rac1 $146 {[%emt 0:00:30]} ({Predecessor:} 16. b4 Qb5 17. Qd2 h5 18. a4 Qb7 19. Ng5 Rhf8 20. Rfc1 Rc8 21. f3 Ne8 22. b5 cxb5 23. Rxc8+ Qxc8 24. axb5 {½-½ (39) Annetti,L (1857)-Le Corre,P (2014) Morbihan 2010}) 16... Rc8 {[%emt 0:00:30]} 17. e5 {[%emt 0:00:30]} dxe5 {[%emt 0:00:30]} 18. dxe5 {[%emt 0:00:30]} ({But not} 18. Nxe5 $6 Nxe5 19. dxe5 Nd5 $16) 18... Nd5 {[%emt 0:00:30]} 19. Rfd1 {[%emt 0:00:30]} f5 {[%emt 0:00:30]} 20. exf6 {[%emt 0:00:30]} N7xf6 {[%emt 0:00:30]} 21. b4 {[%emt 0:00:30]} Rhd8 {[%emt 0:00:30]} 22. Ne5 {[%emt 0:00:30][%cal Bf3e5,Be5d3,Bd3c5][%mdl 32]} Rd6 {[%emt 0:00:30]} 23. h3 {[%emt 0:00:30]} Re6 {[%emt 0:00:30]} 24. Nd3 {[%emt 0:00:30] aiming for Nc5.} Qb6 {[%emt 0:00:30]} 25. Nc5 {[%emt 0:00:30]} Re5 {[%emt 0:00:30]} 26. Qd2 {[%emt 0:00:30]} Ka8 {[%emt 0:00:30]} 27. Qd4 {[%emt 0:00:30]} Rg5 {[%emt 0:00:30]} 28. Re1 {[%emt 0:00:30]} h6 {[%emt 0:00:30]} 29. Qh4 {[%emt 0:00:30]} Nh5 {[%emt 0:00:30]} 30. Nxh5 {[%emt 0:00:30]} gxh5 {[%emt 0:00:30]} 31. Re6 {[%emt 0:00:30]} Rcg8 {[%emt 0:00:30]} 32. g3 {[%emt 0:00:30]} Rf5 {[%emt 0:00:30]} 33. Qe4 {[%emt 0:00:30] White is clearly winning.} Rf6 {[%emt 0:00:30]} 34. Rxf6 {[%emt 0:00:30]} exf6 {[%emt 0:00:30]} 35. Qe6 {[%emt 0:00:30]} Rd8 {[%emt 0:00:30]} 36. Nd7 {[%emt 0:00:30]} Qc7 {[%emt 0:00:30] [#]} 37. Qxd5 {[%emt 0:00:30][%cal Oc1c6][%mdl 512]} Rxd7 {[%emt 0:00:30]} (37... Qxd7 38. Qxd7) 38. Qxc6+ {[%emt 0:00:30]} Qxc6 {[%emt 0:00:30]} 39. Rxc6 {[%emt 0:00:30]} Rf7 {[%emt 0:00:30]} 40. h4 {[%emt 0:00:30] White took control after the opening.  Weighted Error Value: White=0.06 (flawless) /Black=0.28 (precise)} 1-0

[Event "31st Kavala Open-A 2022"]
[Site "Kavala"]
[Date "2022.07.26"]
[Round "1.14"]
[White "Ruzhansky, Elias"]
[Black "Kilic, Eray"]
[Result "0-1"]
[ECO "B90"]
[WhiteElo "2026"]
[BlackElo "2422"]
[Annotator "TA"]
[PlyCount "70"]
[EventDate "2022.07.27"]
[EventType "swiss"]
[EventCountry "GRE"]
[SourceTitle "playchess.com"]
[Source "ChessBase"]
[SourceQuality "1"]
[TimeControl "40/5400+30:1800+30"]

{[%evp 19,69,13,20,22,23,27,45,13,21,15,28,1,13,-40,-2,-3,-21,-31,-38,-38,-36,-32,-25,-31,-26,-37,-10,-20,-14,-121,-102,-142,-143,-143,-138,-414,-413,-408,-402,-439,-406,-587,-555,-657,-680,-665,-662,-644,-543,-29981,-29980,-29999]} 1. e4 {[%emt 0:00:07]} c5 {[%emt 0:00:06]} 2. Nf3 {[%emt 0:00:09]} d6 {[%emt 0:00:06]} 3. d4 {[%emt 0:00:04]} cxd4 {[%emt 0:00:03]} 4. Nxd4 {[%emt 0:00:14]} Nf6 {[%emt 0:00:06]} 5. Nc3 {[%emt 0:00:06]} a6 {[%emt 0:00:05]} 6. Be3 {[%emt 0:00:13]} e5 {[%emt 0:02:07]} 7. Nf3 {[%emt 0:00:07][%cal Bd4f3,Bf3d2,Bd2c4][%mdl 32]} Qc7 {[%emt 0:00:13]} 8. a4 {[%emt 0:06:29]} Be7 {[%emt 0:00:13]} 9. Be2 {[%emt 0:01:50] is cutting edge theory.} b6 {[%emt 0:02:02]} 10. O-O {[%emt 0:01:23]} O-O {[%emt 0:00:28]} 11. Qd3 {[%emt 0:04:03] is the legacy move (11.Nd2). B90: Sicilian Najdorf: Unusual White 6th moves, 6 Be3 Ng4 and 6 Be3 e5.} Nbd7 {[%emt 0:03:11]} 12. Nd2 {[%emt 0:06:10]} Bb7 {[%emt 0:02:45]} 13. Nc4 {[%emt 0:13:05] White is slightly better.} Rad8 {[%emt 0:15:03][%cal Of6e4]} 14. Bf3 {[%emt 0:03:23]} Nc5 {[%emt 0:05:17]} 15. Bxc5 {[%emt 0:12:34]} dxc5 {[%emt 0:00:26] [#]} 16. Nd5 $146 {[%emt 0:00:51]} (16. Qe2 $11) ({Predecessor:} 16. Qe2 Rd4 17. a5 b5 18. Nb6 Re8 19. Ncd5 Bxd5 20. Nxd5 Nxd5 21. exd5 Bg5 22. Rfd1 {0-1 (30) Hartwig,S-Rittemann,S (2175) Germany 2010}) 16... Nxd5 {[%emt 0:01:11]} (16... Bxd5 $5 17. exd5 b5 18. axb5 axb5 $15) 17. exd5 {[%emt 0:00:12]} b5 {[%emt 0:00:58]} 18. axb5 {[%emt 0:10:55]} axb5 {[%emt 0:00:02]} 19. d6 {[%emt 0:03:24]} Bxd6 {[%emt 0:00:55]} 20. Bxb7 {[%emt 0:00:55][%cal Ob7e4] Black must now prevent Be4!} bxc4 {[%emt 0:00:02]} 21. Qe4 {[%emt 0:00:37]} Kh8 {[%emt 0:12:46]} 22. Bd5 {[%emt 0:01:26]} f5 {[%emt 0:01:56][%cal Bf7f5,Bf5f4][%mdl 32]} 23. Qxc4 {[%emt 0:00:20]} e4 {[%emt 0:00:05]} 24. h3 {[%emt 0:00:45] [#]} (24. g3 $11 {was the only way to keep the balance.}) 24... Qe7 $1 $17 {[%emt 0:01:19]} 25. Ra3 {[%emt 0:07:27]} Bb8 $36 {[%emt 0:07:42][%mdl 2048] ...Qe5 is the strong threat. Keeping White busy.} 26. g3 {[%emt 0:01:43]} Qe5 {[%emt 0:01:31][%csl LRb2,LRd5]} 27. Bf7 {[%emt 0:03:02][%mdl 8192] Now White is beyond hope.} (27. Bb7 $17) 27... f4 $19 {[%emt 0:04:43]} 28. Qe6 {[%emt 0:01:34]} Qxb2 {[%emt 0:00:27]} 29. Ra4 {[%emt 0:01:19]} Qxc2 {[%emt 0:04:15]} 30. Rc4 {[%emt 0:00:38]} (30. Qb3 {was called for.} Qd2 31. Qa2) 30... Qe2 {[%emt 0:01:07] ( -> ...Rd1)} 31. Rxe4 {[%emt 0:00:54]} Qf3 {[%emt 0:00:08]} 32. gxf4 {[%emt 0:13:57] [#]} Rxf7 {[%emt 0:00:54][%mdl 512]} 33. Rfe1 {[%emt 0:02:10]} Rff8 {[%emt 0:00:09]} 34. R1e3 {[%emt 0:00:53]} Rd1+ {[%emt 0:00:18]} 35. Kh2 {[%emt 0:00:48]} Rh1# {[%emt 0:00:05] Weighted Error Value: White=0.52/Black=0.09 (flawless)} 0-1

[Event "31st Kavala Open-A 2022"]
[Site "Kavala"]
[Date "2022.07.26"]
[Round "1.15"]
[White "Zawadzka, Jolanta"]
[Black "Nikolaev, Georgi"]
[Result "1/2-1/2"]
[ECO "C54"]
[WhiteElo "2416"]
[BlackElo "2026"]
[Annotator "TA"]
[PlyCount "80"]
[EventDate "2022.07.27"]
[EventType "swiss"]
[EventCountry "GRE"]
[SourceTitle "playchess.com"]
[Source "ChessBase"]
[SourceQuality "1"]
[TimeControl "40/5400+30:1800+30"]

{[%evp 12,80,14,13,12,20,20,10,14,10,0,0,0,0,0,0,-2,-17,0,0,0,0,0,0,-7,-26,-31,-15,-16,-13,-30,-28,-29,-16,-16,-57,-52,-60,-67,-74,-74,-118,-110,-158,-169,-121,-53,-64,-45,-45,-41,-40,-42,-82,-3,-8,-7,-9,0,0,0,0,29,-40,0,0,0,0,0,-34,-42]} 1. e4 {[%emt 0:00:05]} e5 {[%emt 0:00:21]} 2. Nf3 {[%emt 0:00:05]} Nc6 {[%emt 0:00:07]} 3. Bc4 {[%emt 0:00:08]} Nf6 {[%emt 0:00:17]} 4. d3 {[%emt 0:00:06]} Bc5 {[%emt 0:00:07]} 5. c3 {[%emt 0:00:18]} d6 {[%emt 0:00:13]} 6. O-O {[%emt 0:00:36]} O-O {[%emt 0:01:09]} 7. Re1 {[%emt 0:00:53]} a5 {[%emt 0:02:22] C54: Giuoco Piano: 4 c3 Nf6, main lines with 5 d4 and 5 d3.} 8. h3 {[%emt 0:01:32]} h6 {[%emt 0:00:09]} 9. Nbd2 {[%emt 0:02:56]} Be6 {[%emt 0:00:10] The position is equal.} 10. Bb5 {[%emt 0:00:56]} Qb8 {[%emt 0:00:14]} 11. Bxc6 {[%emt 0:01:38]} bxc6 {[%emt 0:00:20]} 12. d4 {[%emt 0:00:10]} exd4 {[%emt 0:02:26]} 13. cxd4 {[%emt 0:01:18]} Bb6 {[%emt 0:01:55]} 14. a4 {[%emt 0:06:49]} Qa7 {[%emt 0:05:30]} 15. Nb1 {[%emt 0:12:29]} d5 {[%emt 0:06:12]} 16. e5 {[%emt 0:00:18]} Ne4 {[%emt 0:01:04]} 17. Nc3 {[%emt 0:03:21]} c5 {[%emt 0:04:23][%cal Rc5d4] [#]} 18. Be3 $146 {[%emt 0:06:37]} (18. Nxe4 {looks sharper.} dxe4 19. Rxe4 cxd4 20. Bxh6 gxh6 21. Qd2) ({Predecessor:} 18. Nxe4 dxe4 19. Nd2 Rfd8 20. Nxe4 c4 21. Qh5 Rxd4 22. Kh2 Rxe4 23. Rxe4 Bxf2 24. Bxh6 gxh6 25. Qxh6 {½-½ (39) Hall,M (2592)-Lyukmanov,V (2443) ICCF email 2020}) 18... cxd4 {[%emt 0:00:32]} 19. Nxd4 {[%emt 0:12:33]} Bxd4 {[%emt 0:07:28]} 20. Bxd4 {[%emt 0:00:12]} Nxc3 {[%emt 0:00:07]} 21. bxc3 {[%emt 0:04:42]} c5 {[%emt 0:00:14]} 22. Be3 {[%emt 0:00:05]} Rfd8 {[%emt 0:01:34]} 23. f4 {[%emt 0:10:02]} d4 {[%emt 0:00:13]} 24. cxd4 {[%emt 0:00:12]} cxd4 {[%emt 0:00:05]} 25. Bf2 {[%emt 0:00:03]} Rab8 {[%emt 0:01:32]} 26. Ra3 {[%emt 0:02:53]} Bf5 {[%emt 0:18:22] Against Rd3} 27. Qd2 {[%emt 0:09:17]} (27. g4 $142 Qc5 28. Ra2) 27... Qc5 $17 {[%emt 0:10:03]} 28. Raa1 {[%emt 0:04:02]} ({Better is} 28. Ra2 $19) 28... Qc3 {[%emt 0:08:05]} (28... Rb4 $17 29. Rec1 Qd5) 29. Red1 $15 {[%emt 0:00:23][%cal Rf2d4]} Qxd2 {[%emt 0:03:15]} 30. Rxd2 {[%emt 0:00:02]} Rb4 {[%emt 0:00:17]} 31. g4 {[%emt 0:04:28]} Be4 {[%emt 0:00:17]} 32. f5 {[%emt 0:01:35][%cal Bf4f5,Bf5e6,Be6e7][%mdl 32]} Bc6 {[%emt 0:01:16]} (32... Rc4 $17) 33. e6 {[%emt 0:02:18]} fxe6 {[%emt 0:02:03]} ({Don't play} 33... Bxa4 34. e7 Re8 35. f6 $16 (35. Rxd4 Bb5 $16)) 34. fxe6 {[%emt 0:00:02]} Re8 {[%emt 0:01:57]} 35. Re1 {[%emt 0:01:25]} Rxa4 {[%emt 0:05:10]} 36. e7 {[%emt 0:03:18]} Kf7 {[%emt 0:02:31]} 37. Bh4 {[%emt 0:07:37]} ({White should try} 37. Bxd4 $11 Rxe7 38. Rf2+ Ke8 39. Rxe7+ Kxe7 40. Bxg7) 37... d3 {[%emt 0:00:01]} 38. Rf1+ {[%emt 0:01:28]} Kg8 {[%emt 0:01:12]} 39. Rxd3 {[%emt 0:01:03] [#] Hoping for Rd8.} g5 {[%emt 0:00:07]} (39... Bb5 $2 40. Rd8 g5 41. Rxe8+ Bxe8 42. Rf8+ Kg7 43. Rxe8 $18) 40. Bg3 {[%emt 0:00:00] And now Rd8 would win.} Rxe7 {[%emt 0:00:00] Weighted Error Value: White=0.14 (very precise) /Black=0.11 (very precise)} 1/2-1/2

[Event "31st Kavala Open-A 2022"]
[Site "Kavala"]
[Date "2022.07.26"]
[Round "1.16"]
[White "Gkavardinas, Antonios"]
[Black "Kanakaris, Georgios"]
[Result "0-1"]
[ECO "B01"]
[WhiteElo "2010"]
[BlackElo "2389"]
[Annotator "TA"]
[PlyCount "116"]
[EventDate "2022.07.27"]
[EventType "swiss"]
[EventCountry "GRE"]
[SourceTitle "playchess.com"]
[Source "ChessBase"]
[SourceQuality "1"]
[TimeControl "40/5400+30:1800+30"]

{[%evp 9,116,35,32,6,7,0,0,0,0,0,0,-16,-4,-45,-27,-39,-14,-10,0,0,0,0,19,8,14,8,28,21,27,22,15,0,16,20,28,29,28,30,27,0,0,0,0,0,3,0,0,0,0,0,0,0,1079,19,20,-41,102,102,79,0,0,0,0,0,0,0,0,-20,-29,-45,-46,-47,-43,-47,-44,-206,-204,-1606,-1589,-1602,-1593,-1590,-1571,-1571,-1456,-1538,-1512,-1337,-1297,-1495,-1470,-1283,-1205,-1902,-1785,-29977,-29978,-29978,-29978,-29978,-29977,-29976,-29977,-29982,-29983,-29984,-29980,-29980,-29980]} 1. e4 {[%emt 0:00:02]} d5 {[%emt 0:00:14]} 2. exd5 {[%emt 0:00:13]} Nf6 {[%emt 0:00:16]} 3. Nf3 {[%emt 0:01:11]} Qxd5 {[%emt 0:01:47]} 4. Nc3 {[%emt 0:00:48]} Qd8 {[%emt 0:00:24]} 5. Bc4 {[%emt 0:01:02]} a6 {[%emt 0:01:22]} 6. a4 {[%emt 0:01:40] B01: Scandinavian Defence.} c5 {[%emt 0:09:12]} 7. O-O {[%emt 0:03:37]} Nc6 {[%emt 0:00:14]} 8. h3 {[%emt 0:02:28] The position is equal.} e6 {[%emt 0:02:16]} 9. d3 {[%emt 0:02:04]} Be7 {[%emt 0:00:24]} 10. Be3 {[%emt 0:03:50] [#]} O-O $146 {[%emt 0:12:19]} ({Predecessor:} 10... Nd4 11. Ne4 b6 12. c3 Nf5 13. Qe2 O-O 14. Bf4 Bb7 15. Rfd1 Nd6 16. Nxd6 Bxd6 17. Bxd6 Qxd6 {1-0 (65) Rajapakse,R (2110)-Fonseka,C (1920) Colombo 2013}) 11. Qe2 {[%emt 0:06:56]} Qc7 {[%emt 0:07:44]} (11... Nd4 $5 {[%cal Rd4e2]} 12. Bxd4 cxd4 $11) 12. Ne4 {[%emt 0:12:09]} Nxe4 {[%emt 0:02:24]} (12... b6 {feels hotter.} 13. Bg5 Bb7 14. Rfd1 Nxe4 15. dxe4 Bxg5 16. Nxg5 Nd4) 13. dxe4 {[%emt 0:02:16]} Na5 {[%emt 0:00:23]} 14. Nd2 {[%emt 0:04:01]} Bd7 {[%emt 0:11:50]} 15. Bd3 {[%emt 0:05:26]} Rab8 {[%emt 0:02:51]} 16. f4 {[%emt 0:06:48]} Rfc8 {[%emt 0:03:35]} 17. c3 {[%emt 0:03:26]} c4 {[%emt 0:01:55]} 18. Bc2 {[%emt 0:00:41]} Bc5 {[%emt 0:00:06]} 19. Bxc5 {[%emt 0:03:18]} Qxc5+ {[%emt 0:00:05]} 20. Kh1 {[%emt 0:00:23]} Rd8 {[%emt 0:04:56]} 21. e5 {[%emt 0:08:41][%cal Oc2h7] Hoping for Bxh7+!} Bc6 {[%emt 0:00:49]} 22. f5 {[%emt 0:03:19]} exf5 {[%emt 0:02:48]} 23. Rxf5 {[%emt 0:01:31][%cal Bf1f5,Bf5f4,Bf4f6][%mdl 32]} g6 {[%emt 0:00:09]} 24. Rf4 {[%emt 0:02:25]} (24. Rf6 $5 {[%cal Ra1f1]}) 24... Re8 {[%emt 0:00:32]} 25. Re1 {[%emt 0:02:28][%cal Rd2c4]} b5 {[%emt 0:00:46]} 26. axb5 {[%emt 0:02:35]} axb5 {[%emt 0:02:05]} 27. Rf6 {[%emt 0:09:04]} Bd5 {[%emt 0:00:18] Prevents e6.} 28. Ne4 {[%emt 0:01:41]} Bxe4 {[%emt 0:01:37]} 29. Qxe4 {[%emt 0:00:10] aiming for e6.} Rb6 {[%emt 0:00:27] Inhibits e6. And now ...Rxf6 would win.} 30. Qh4 {[%emt 0:04:50][%cal Of6f7]} Nb7 $2 {[%emt 0:26:36][%mdl 8192] [#]} (30... Rxf6 $11 31. exf6 Rxe1+ 32. Qxe1 Kf8) 31. b4 $2 {[%emt 0:01:56]} (31. Rxf7 $1 $18 {[%mdl 512]} Kxf7 32. Qxh7+ Ke6 33. Bd1 Qxe5 34. Bg4+ Kf6 35. Rxe5 Kxe5 36. Qf7) 31... Qc7 $1 $11 {[%emt 0:01:24]} 32. Ref1 {[%emt 0:01:24]} (32. Rxb6 $11 Qxb6 33. Bd1) 32... Rxf6 {[%emt 0:00:32]} (32... Nd8 $15 {stays ahead.}) 33. exf6 $16 {[%emt 0:00:14] White wants to mate with Qh6.} Nd8 {[%emt 0:00:35]} (33... h5 $2 {[#]} 34. Bxg6 $1 {[%mdl 512]} fxg6 35. f7+ Qxf7 36. Rxf7 Kxf7 37. Qf4+ Kg8 38. Qf6 $18) 34. Qg5 {[%emt 0:01:43]} (34. Qh6 $16 {[%csl Gf6][%cal Rh6g7]} Ne6 35. Bd1) 34... Qe5 $11 {[%emt 0:02:31]} 35. Qxe5 {[%emt 0:01:30]} Rxe5 {[%emt 0:00:05][%mdl 4096] Endgame KRB-KRN} 36. Ra1 {[%emt 0:00:54]} Kf8 {[%emt 0:00:56]} 37. Kh2 {[%emt 0:01:37]} ({Much worse is} 37. Ra8 Ke8) 37... Ke8 {[%emt 0:00:49]} 38. Ra5 {[%emt 0:00:36][%cal Oa5b5] Black must now prevent Rxb5!} Nc6 {[%emt 0:01:29]} 39. Ra6 {[%emt 0:00:27]} Kd7 {[%emt 0:00:20] Threatens to win with ...Re3.} 40. Bd1 {[%emt 0:00:00]} Re3 {[%emt 0:00:00]} 41. Rb6 {[%emt 0:07:52]} Rxc3 {[%emt 0:14:48] Strongly threatening ...Nd4.} 42. Bg4+ $2 {[%emt 0:02:52]} ({Better is} 42. Rxb5 $15 Kd6 43. Bf3) 42... Kd6 $19 {[%emt 0:00:47]} 43. Bf3 $2 {[%emt 0:03:11] [#]} (43. Rb7 h5 44. Bc8 Nxb4 45. Rxf7) 43... Rxf3 $1 {[%emt 0:00:24][%mdl 512]} 44. gxf3 {[%emt 0:00:02] KR-KN} c3 {[%emt 0:00:28]} 45. Rxb5 {[%emt 0:00:49]} c2 {[%emt 0:00:06]} 46. Rc5 {[%emt 0:00:11]} Nxb4 {[%emt 0:00:08]} 47. Rc3 {[%emt 0:04:32]} Kd5 {[%emt 0:00:32] ...Kd4 is the strong threat.} 48. Kg3 {[%emt 0:04:14]} Kd4 {[%emt 0:00:08]} 49. Rc7 {[%emt 0:00:56]} Kd3 {[%emt 0:00:17] ( -> ...Nd5)} 50. Rd7+ {[%emt 0:07:59]} Ke2 {[%emt 0:00:22]} 51. Re7+ {[%emt 0:01:13]} Kd2 {[%emt 0:00:16]} 52. Rd7+ {[%emt 0:00:58]} Nd3 {[%emt 0:00:27] Black mates.} 53. Rc7 {[%emt 0:00:08]} c1=Q {[%emt 0:00:36]} 54. Rxc1 {[%emt 0:00:15]} Kxc1 {[%emt 0:00:22]} 55. f4 {[%emt 0:01:13]} Kd2 {[%emt 0:00:12]} 56. Kg4 {[%emt 0:00:09]} Ke3 {[%emt 0:00:12]} 57. f5 {[%emt 0:01:24]} Ke4 {[%emt 0:00:16]} 58. fxg6 {[%emt 0:00:07]} hxg6 {[%emt 0:00:08] Black used his chance.  Weighted Error Value: White=0.59/Black=0.08 (flawless)} 0-1